Cogmind - Beta 12 X1 @@@ ROGUE MODE // 2022.07.31 @ 07:16:07 Player: Exp. Geonium Core Result: Destroyed by G-47 Trooper with Particle Gun Performance ------------- Evolutions (2) 1000 Regions Visited (5) 1000 Robots Destroyed (6) 30 Value Destroyed (222) 222 Prototype IDs (23) 460 Alien Tech Used (0) 0 Bonus (353) 353 TOTAL SCORE: 3065 Bonus ------- Follower Combat Kills 53 Aligned with FarCom 300 Cogmind --------- Core Integrity 0/550 Matter 300/300 Energy 99/100 System Corruption 0% Temperature Cool (14) Movement Core (50) Location -8/Materials Parts ------- > --- POWER (1) -------- (None) > --- PROPULSION (2) --- (None) > --- UTILITY (6) ------ (None) > --- WEAPON (2) ------- (None) > --- INVENTORY (5) ---- Large Storage Unit EM Pulse Gun Medium Laser Field Lobotomy Kit (5) Peak State ------------ > --- POWER ------------ Ion Engine > --- PROPULSION ------- Light Treads Light Treads > --- UTILITY ---------- Small Storage Unit > --- WEAPON ----------- Field Lobotomy Kit > --- INVENTORY -------- Ion Engine Wheel Wheel High-capacity Matter Pod EM Pulse Gun [Rating: 14] Favorites ----------- Power Ion Engine Engine Ion Engine Propulsion Light Treads Treads Light Treads Leg Aluminum Leg Utility Small Storage Unit Storage Small Storage Unit Weapon Light Assault Rifle Energy Gun Medium Laser Ballistic Gun Light Assault Rifle Special Weapon Field Lobotomy Kit Build | -11 -10 -10 -10 -9 -8 ------- Run | Scr Mat Min Exi Min Mat Slots Evolved 4 | . . . . . 4 Power . | . . . . . . Propulsion . | . . . . . . Utility 4 | . . . . . 4 Weapon . | . . . . . . Parts Attached 7 | 3 . . 2 . 2 Power . | . . . . . . Engine . | . . . . . . Core . | . . . . . . Reactor . | . . . . . . Propulsion 2 | 2 . . . . . Treads 2 | 2 . . . . . Leg . | . . . . . . Wheel . | . . . . . . Hover . | . . . . . . Flight . | . . . . . . Utility 1 | . . . 1 . . Device . | . . . . . . Storage 1 | . . . 1 . . Processor . | . . . . . . Hackware . | . . . . . . Protection . | . . . . . . Artifact . | . . . . . . Weapon 4 | 1 . . 1 . 2 Energy Gun . | . . . . . . Energy Cannon . | . . . . . . Ballistic Gun 3 | 1 . . . . 2 Ballistic Cannon . | . . . . . . Launcher . | . . . . . . Special Weapon 1 | . . . 1 . . Impact Weapon . | . . . . . . Slashing Weapon . | . . . . . . Piercing Weapon . | . . . . . . Special Melee Weapon . | . . . . . . Unidentified Prototypes . | . . . . . . Parts Lost 4 | . . . . . 4 Power . | . . . . . . Propulsion 2 | . . . . . 2 Utility . | . . . . . . Weapon 2 | . . . . . 2 Highest Loss Streak 3 | . . . . . 3 To Critical Strikes . | . . . . . . Average Slot Usage (%) 65 | . 85 85 64 57 33 Engine 12 | . 14 14 14 14 6 Treads 25 | . 28 28 28 28 13 Storage 12 | . 14 14 14 14 6 Energy Gun 6 | . 14 14 3 . . Ballistic Gun 7 | . 14 14 3 . 6 Naked Turns 59 | . . . . . 59 Heaviest Build 29 | 13 13 13 25 25 29 Greatest Support 40 | 40 40 40 40 40 40 Greatest Overweight (x) . | . . . . . . Average Overweight (x) . | . . . . . . Largest Inventory Capacity 15 | 8 8 8 15 15 15 Average Capacity 10 | 8 8 8 9 15 12 Most Carried 9 | 6 4 5 8 8 9 Average Carried 5 | 4 4 4 6 8 6 Final Capacity 15 | 8 8 8 15 15 5 Final Carried 8 | 4 4 5 8 8 4 Class Distribution -------------------- 100% | Mutant Dominant Class ---------------- Mutant | -10/Materials Mutant | -10/Mines Mutant | -10/Exiles Mutant | -9/Mines Mutant | -8/Materials Resources | -11 -10 -10 -10 -9 -8 ----------- Run | Scr Mat Min Exi Min Mat Matter Collected 400 | 200 36 42 . . 122 Remotely . | . . . . . . Salvage Created 246 | . 80 14 . . 152 Parts 9 | . 4 2 . . 3 Haulers Intercepted . | . . . . . . Recyclers Shooed . | . . . . . . Parts Field Recycled . | . . . . . . Retrieved Matter . | . . . . . . Parts Self-Destructed . | . . . . . . Prevented . | . . . . . . Kills | -11 -10 -10 -10 -9 -8 ------- Run | Scr Mat Min Exi Min Mat Combat Hostiles Destroyed 6 | . 2 1 . . 3 Guns 6 | . 2 1 . . 3 Classes Destroyed 2 | . 1 1 . . . Swarmer 1 | . . 1 . . . Grunt 5 | . 2 . . . 3 Best Kill Streak 2 | . 2 1 . . 2 Combat Bots Only 2 | . 2 1 . . 2 Max Kills in Single Turn 1 | . 1 1 . . 1 Gunslinging . | . . . . . . Exploded . | . . . . . . Melee . | . . . . . . Uniques/NPCs Destroyed . | . . . . . . Combat | -11 -10 -10 -10 -9 -8 -------- Run | Scr Mat Min Exi Min Mat Damage Taken 1146 | . 99 . . . 1047 Core 562 | . 10 . . . 552 Absorbed by Shields . | . . . . . . Core Remaining (%) 98 | 100 . . . 96 . Volleys Fired 33 | . 10 4 . . 19 Largest 2 | . 2 2 . . 2 Hottest 70 | . 70 70 . . 43 Shots Fired 59 | . 20 8 . . 31 Gun 59 | . 20 8 . . 31 Cannon . | . . . . . . Launcher . | . . . . . . Special . | . . . . . . Kinetic 45 | . 10 4 . . 31 Thermal 14 | . 10 4 . . . Explosive . | . . . . . . Electromagnetic . | . . . . . . Robot Hit Streak 10 | . 6 2 . . 10 Robot Miss Streak 2 | . 1 1 . . 2 Penetration Max . | . . . . . . Secondary Targets . | . . . . . . Shots Hit Robots 43 | . 13 4 . . 26 Core Hits 20 | . 5 2 . . 13 Critical Kills . | . . . . . . Critical Parts Destroyed . | . . . . . . Critical Strikes . | . . . . . . Melee Attacks . | . . . . . . Impact . | . . . . . . Slashing . | . . . . . . Piercing . | . . . . . . Sneak Attacks . | . . . . . . Combat Hostiles . | . . . . . . Follow-up Attacks . | . . . . . . Damage Inflicted 486 | . 134 40 . . 312 Guns 480 | . 134 40 . . 306 Cannons . | . . . . . . Explosions . | . . . . . . Melee . | . . . . . . Ramming 6 | . . . . . 6 Kinetic 380 | . 59 15 . . 306 Thermal 100 | . 75 25 . . . Explosive . | . . . . . . Electromagnetic . | . . . . . . Impact . | . . . . . . Slashing . | . . . . . . Piercing . | . . . . . . Highest Corruption 3 | . 3 3 3 3 . Average Corruption 2 | . 2 3 3 3 . Corruption Purged . | . . . . . . Corruption Blocked . | . . . . . . Effects 19 | . . 7 9 3 . Message Errors 5 | . . 1 3 1 . Matter Fused 7 | . . 4 1 2 . Heat Flow Errors 2 | . . 1 1 . . Energy Discharges 1 | . . . 1 . . Data Loss (minor) 2 | . . . 2 . . Data Loss (major) 1 | . . 1 . . . Alerts 1 | . . . 1 . . Overload Shots . | . . . . . . Overflow Damage . | . . . . . . Projectiles . | . . . . . . Explosions . | . . . . . . Melee . | . . . . . . Knockbacks . | . . . . . . Impact . | . . . . . . Kinetic . | . . . . . . Secondary . | . . . . . . Self-Inflicted Damage 3 | . . . . . 3 Shots . | . . . . . . Rammed 1 | . . . . . 1 Targets Rammed 1 | . . . . . 1 Kicked . | . . . . . . Crushed . | . . . . . . Highest Temperature 134 | . 108 134 130 . 12 Average Temperature 46 | . 60 45 74 . 6 Received Heat Transfer 576 | . 54 . . . 522 Siege Activations . | . . . . . . Robots Corrupted . | . . . . . . Combat Hostiles . | . . . . . . Parts Fried . | . . . . . . Impact Corruptions . | . . . . . . Robots Melted . | . . . . . . Combat Hostiles . | . . . . . . Parts Melted . | . . . . . . Heat Transferred 296 | . 222 74 . . . Parts Sabotaged . | . . . . . . Parts Stolen . | . . . . . . Parts Stripped . | . . . . . . Power Chain Reactions . | . . . . . . Missiles Intercepted . | . . . . . . Alert | -11 -10 -10 -10 -9 -8 ------- Run | Scr Mat Min Exi Min Mat Peak Influence 191 | . 58 127 . . 191 Initial 22 | . . 22 . . . Average 55 | . 17 87 . . 70 Maximum Alert Level . | . . . . . . Low Security (%) 100 | 100 100 100 . 100 100 Level 1 . | . . . . . . Level 2 . | . . . . . . Level 3 . | . . . . . . Level 4 . | . . . . . . Level 5 . | . . . . . . High Security . | . . . . . . Max Security . | . . . . . . Squads Dispatched 2 | . . . . . 2 Investigation 1 | . . . . . 1 Extermination . | . . . . . . Reinforcement 1 | . . . . . 1 Assault . | . . . . . . Garrison . | . . . . . . Intercept . | . . . . . . Searches Triggered . | . . . . . . Construction Impeded . | . . . . . . Haulers Reinforced . | . . . . . . Active Scanning Responses . | . . . . . . Cargo Convoy Interrupts . | . . . . . . Stealth | -11 -10 -10 -10 -9 -8 --------- Run | Scr Mat Min Exi Min Mat Distress Signals 2 | . . . . . 2 Communications Jammed . | . . . . . . Distress Signals . | . . . . . . Times Spotted 28 | . 4 4 . . 20 Peak Tracking Total 14 | . 3 2 . . 14 Tactical Retreats 4 | . . 1 . . 3 Traps | -11 -10 -10 -10 -9 -8 ------- Run | Scr Mat Min Exi Min Mat Traps Triggered 2 | . 2 . . . . Indirectly . | . . . . . . Trap Hack Attempts . | . . . . . . Triggered . | . . . . . . Disarmed . | . . . . . . Reprogrammed . | . . . . . . Reused . | . . . . . . Traps Extracted . | . . . . . . Installed . | . . . . . . Triggered . | . . . . . . Machines | -11 -10 -10 -10 -9 -8 ---------- Run | Scr Mat Min Exi Min Mat Machines Disabled . | . . . . . . Max in Single Turn . | . . . . . . Machines Sabotaged . | . . . . . . Garrisons Compromised . | . . . . . . Overloaded Fab Kills . | . . . . . . Hacking | -11 -10 -10 -10 -9 -8 --------- Run | Scr Mat Min Exi Min Mat Machines Accessed 4 | . . . 2 . 2 Terminals 2 | . . . . . 2 Fabricators . | . . . . . . Repair Stations . | . . . . . . Recycling Units . | . . . . . . Scanalyzers . | . . . . . . Garrison Access . | . . . . . . Total Hacks 7 | . . . 2 . 5 Successful 4 | . . . 2 . 2 Failed 3 | . . . . . 3 Catastrophic 1 | . . . . . 1 Database Lockouts . | . . . . . . Manual 4 | . . . 1 . 3 Terminals 5 | . . . . . 5 Fabricators . | . . . . . . Repair Stations . | . . . . . . Recycling Units . | . . . . . . Scanalyzers . | . . . . . . Garrison Access . | . . . . . . Terminal Hacks 3 | . . . 2 . 1 Record 1 | . . . 1 . . Branch Access Points 1 | . . . . . 1 EX-Prototype ID Bank 1 | . . . 1 . . Fabricator Hacks . | . . . . . . Repair Station Hacks . | . . . . . . Recycling Unit Hacks . | . . . . . . Scanalyzer . | . . . . . . Garrison Access Hacks . | . . . . . . Unauthorized Hacks 1 | . . . . . 1 Terminals 1 | . . . . . 1 Botnet 1 | . . . . . 1 Fabricators . | . . . . . . Repair Stations . | . . . . . . Recycling Units . | . . . . . . Scanalyzers . | . . . . . . Garrison Access . | . . . . . . Data Cores Recovered . | . . . . . . Used . | . . . . . . Hacking Detections 2 | . . . . . 2 Full Trace Events 1 | . . . . . 1 Feedback Events . | . . . . . . Feedback Blocked . | . . . . . . Robot Schematics Acquired . | . . . . . . Robots Built . | . . . . . . Authchips . | . . . . . . Time . | . . . . . . Total Robot Build Rating . | . . . . . . Part Schematics Acquired . | . . . . . . Parts Built . | . . . . . . Authchips . | . . . . . . Time . | . . . . . . Total Part Build Rating . | . . . . . . Parts Repaired . | . . . . . . Time . | . . . . . . Parts Recycled . | . . . . . . Recycled Matter . | . . . . . . Retrieved Matter . | . . . . . . Retrieved Components . | . . . . . . Parts Scanalyzed . | . . . . . . Part Schematics Acquired . | . . . . . . Parts Damaged . | . . . . . . Bothacking | -11 -10 -10 -10 -9 -8 ------------ Run | Scr Mat Min Exi Min Mat Used RIF Installer . | . . . . . . Robots Hacked . | . . . . . . Non-combat . | . . . . . . Combat . | . . . . . . Robot Hacks Applied . | . . . . . . Relay Couplers Released . | . . . . . . Fabnet Peak Effective % . | . . . . . . Robots Rewired . | . . . . . . Allies Hacked . | . . . . . . Hacks Repelled . | . . . . . . Allies | -11 -10 -10 -10 -9 -8 -------- Run | Scr Mat Min Exi Min Mat Total Allies 2 | . . 2 . . . Largest Group 2 | . . 2 1 . . Highest-Rated Group 38 | . . 38 31 . . Highest-Rated Ally 31 | . . 31 31 . . Total Orders . | . . . . . . Ally Attacks 14 | . . 14 . . . Total Damage 146 | . . 146 . . . Kills 3 | . . 3 . . . Allies Corrupted . | . . . . . . Allies Melted . | . . . . . . Intel | -11 -10 -10 -10 -9 -8 ------- Run | Scr Mat Min Exi Min Mat Robot Analysis Total . | . . . . . . Derelict Logs Recovered 1 | . . . . 1 . Drone Launches . | . . . . . . Drone Recoveries . | . . . . . . Exploration | -11 -10 -10 -10 -9 -8 ------------- Run | Scr Mat Min Exi Min Mat Turns Passed 1544 | 5 151 407 479 207 295 Spaces Moved 912 | 1 73 166 296 130 246 Core 153 | . . . . . 153 Treads 759 | 1 73 166 296 130 93 Legs . | . . . . . . Wheels . | . . . . . . Hover . | . . . . . . Flight . | . . . . . . Fastest Speed 50 | 160 160 160 160 160 50 Average Speed 141 | 160 160 160 160 160 91 Slowest Speed 160 | 160 160 160 160 160 160 Overloaded Moves . | . . . . . . Propulsion Burnouts . | . . . . . . Robots Hopped . | . . . . . . Cave-ins Triggered . | . . . . . . Exploration Rate (%) 34 | 2 23 31 69 54 30 Regions Visited 5 Branch Regions 3 Pre-discovered Areas 1 | . . . 1 . . Known Exits Taken . | . . . . . . Unknown Exits Taken 5 | 1 1 1 1 1 . Scrap Searched 2 | . . 2 . . . Spaces Dug . | . . . . . . Terrain Destroyed . | . . . . . . Melee . | . . . . . . Projectile . | . . . . . . AOE . | . . . . . . Terrain Rammed . | . . . . . . Walls Destroyed . | . . . . . . Machines Disabled . | . . . . . . Actions | -11 -10 -10 -10 -9 -8 --------- Run | Scr Mat Min Exi Min Mat Total 1117 | 5 89 300 303 129 291 Wait 153 | . 7 130 . . 16 Move 907 | . 72 165 295 129 246 Hop . | . . . . . . Pick Up 4 | . . 1 2 . 1 Fast Attach 2 | . . . 2 . . Attach 4 | 2 . . . . 2 Detach 2 | . . . 1 . 1 Swap 1 | 1 . . . . . Drop 10 | 2 . . 3 . 5 Fire 33 | . 10 4 . . 19 Melee . | . . . . . . Ram 1 | . . . . . 1 Kick . | . . . . . . Crush . | . . . . . . Escape Stasis . | . . . . . . Rewire . | . . . . . . Trap . | . . . . . . Miscellaneous . | . . . . . . Route ------- -11/Scrapyard -10/Materials -10/Mines -10/Exiles -9/Mines -8/Materials (discovered 2 exits: *Fac x2) History --------- Turn | Location | Event 6 | -11/Scrapyard | Discovered new exit (range 0) 6 | -11/Scrapyard | Entered Materials 133 | -10/Materials | Discovered new exit (range 16) 157 | -10/Materials | Entered Mines 199 | -10/Mines | Assembled infested the area 310 | -10/Mines | Build established: Mutant 557 | -10/Mines | Discovered new exit (range 5) 564 | -10/Mines | Entered Exiles 564 | -10/Exiles | Accompanied by 1 ally 594 | -10/Exiles | Led the pair of lost Derelicts to a safe place 606 | -10/Exiles | Met 8R-AWN 632 | -10/Exiles | Met EX-HEX 696 | -10/Exiles | Met EX-DEC 703 | -10/Exiles | Learned location of Zion (-7) 729 | -10/Exiles | Met EX-BIN 751 | -10/Exiles | Aligned with FarCom system 753 | -10/Exiles | Given EX-Vault access code 789 | -10/Exiles | Opened EX-Vault 802 | -10/Exiles | Found Field Lobotomy Kit 835 | -10/Exiles | Warned to stay clear of 0b10 Research branches 1029 | -10/Exiles | Discovered new exit (range 10) 1043 | -10/Exiles | Left Exiles lab with Field Lobotomy Kit 1043 | -10/Exiles | Entered Mines 1221 | -9/Mines | Learned location of 2 exits from Materials 1231 | -9/Mines | Discovered new exit (range 15) 1250 | -9/Mines | Entered Materials 1250 | -8/Materials | Evolved 4 slots: Utility x4 1251 | -8/Materials | Identified exit to Factory 1512 | -8/Materials | Core integrity fell below 50% 1517 | -8/Materials | Lost 3 parts (2n1w) 1543 | -8/Materials | Core integrity fell below 20% 1545 | -8/Materials | Destroyed by G-47 Trooper with Particle Gun Last Messages --------------- 01466_ Dropped Ion Engine. 01466_ Lgt. Assault Rifle destroyed. 01467_ Dropped Ion Engine. 01470_ R-06 Scavenger collects Wheel. 01473_ Lgt. Treads destroyed. 01478_ W-25 Informer sends out distress signal. 01479_ Penetrated by Slug. 01481_ Electrolysis Chamber disabled. 01483_ Penetrated by Slug. 01486_ Slug penetrates G-47 Trooper. 01486_ Lgt. Treads destroyed. 01487_ Critical hit (Burn: +37). 01489_ Penetrated by Slug. 01505_ K-01 Serf collects debris. 01509_ Slug penetrates Wall. 01510_ K-01 Serf collects debris. 01514_ Critical hit (Burn: +37). 01519_ K-01 Serf collects debris. 01543_ Slammed into T-07 Excavator. 01544_ Critical hit (Burn: +37). Map ----- +----------------------------------------------------+ | ????# #?????# #?# #? | | ????# < #?????# #?# #? | | ????# ####### ### ## | | ????###########+### # | | ??????????????????## ######### # | | ???????????????????# #??????## | | ???????????????????# #??????#T | | ???????????????????# # ????## | | ???????????????????# # #### | | ???????????????????# # + !! | | ???????Y????######?# # # ! | | ????????????# [ ?# #????# | | ????????????# # #????+ | | ????????????# """ # #????#####T## #" | | ????????????# """ + #????????#### #" | | ????????????# """ # #????????####+## | | ????????????# # #????????# | | ????????????######## ##???????# | | ???????????######## #???????# | | ???????????# #???????# | | ???????????# +???????# | | ???????????# h #? / """ | | ???????????### Y# #? # """ | | ???###########+# #######? ??# """ | | ???? #g #??????? ????# | | ??????"" """ @gt ####??????????####### | | ??????"" """ #gg #????????????????? | | ??????"" """ g%g##+#????????????????? | | ???? * # Y#???????????????????? | | ???############# #???????????????????? | | ??????# + #???????????????????? | | ??????# """ # #???????????????????? | | ??????# """ # #??#######??????????? | | ??????# """ # #? #??????????? | | ??????# # #? "T" #??????????? | | ??????# # # #??????????? | | ??????# "" # # ] #??????????? | | ??????#! S"" + + #??????????? | | ??????# "" # # """ #??????????? | | ?????########### #] """ ???????????? | | ?????# #? """ ???????????? | | ?????# #? ???????????? | | ?????###+####### #??#######??????????? | | ??????* ????# #???????????????????? | | ?????# #??# #???????????????????? | | ?????# !!! #?? #???????????????????? | | ?????#* !! #?? #???????????????????? | | ?????# !! #??####???????????????????? | | ?????# #?????????????????????????? | | ??????#######?????????????????????????? | +----------------------------------------------------+ Best States ------------- Heat Dissipation 31 Energy Generation 10 Energy Capacity 250 Matter Stores 300 Matter Capacity 300 Sight Range 16 Terrain Scan Density 10 Evasion (%) 50 Recoil Reduction 2 Item Schematics ----------------- None Robot Schematics ------------------ None Fabricated ------------ Nothing Alien Tech Used ----------------- None Achievements -------------- None Challenges ------------ None Game ------ Seed TransportPotentialArmor Manual? 0 Play Time 00:10:31 Cumulative 261.5 hours Start 2022.07.31 @ 07:06:40 End 2022.07.31 @ 07:16:07 Sessions 1 Manual Loads 0 Difficulty Rogue Special Mode None Game No. 313 Rogue 313 Adventurer 0 Explorer 0 Win Type - Total 11 Types 8/0/2/1/0/0/0/0/0 Lore% 70 Gallery% 87 Achievement% 74 Wizard Run 0 Options --------- ASCII 0 Keyboard 0 Movement Numpad Keybinds 0 Fullscreen 1 Font 18/Terminus Map View 76x50 Tactical HUD 1 Map Filters NONE Filters NONE Steam 1 RUN: 52b911ea-d517-409f-9763-61bebbc03523